{"text_format":"1","workbook":"xlsx","n_sheets":2,"sheets":["список ссылок","имена файлов для удаления"],"not_rendered":{"charts":0,"images":0,"macros":1,"external_links":0,"defined_names":0,"comments":0,"pivot_tables":0},"unopened":[],"bounds":{"document_bytes":16777216,"sheet_cells":100000,"rows_first":2000,"rows_last":500,"rows_between":2000,"halvings":0,"cell_chars":16384,"cell_head_chars":4096},"cells_cut":0,"cells_raw":0,"read":"whole","date_system":"1900"}

{"sheet":"список ссылок","index":0,"n_rows":43,"n_cols":2,"rows_kept":43,"cut":false,"hidden":false,"merged":[]}
["https://static-eu.insales.ru/images/products/1/5922/107149090/chillafishquadiebl_2.jpg https://static-eu.insales.ru/images/products/1/5925/107149093/quadielimechillafish.jpg https://static-eu.insales.ru/images/products/1/5927/107149095/Chillafish_Quadie_Pink_2.jpg https://static-eu.insales.ru/images/products/1/1731/108881603/5608_1.jpg https://static-eu.insales.ru/images/products/1/1732/108881604/5608_4.jpg https://static-eu.insales.ru/images/products/1/1733/108881605/5609_4.jpg https://static-eu.insales.ru/images/products/1/1734/108881606/5609_7.jpg https://static-eu.insales.ru/images/products/1/1735/108881607/c8c3fe20fd567b7862010d02bce2e4be.jpg https://static-eu.insales.ru/images/products/1/1736/108881608/5608_5.jpg https://static-eu.insales.ru/images/products/1/1737/108881609/5608_6.jpg https://static-eu.insales.ru/images/products/1/1738/108881610/5608_7.jpg https://static-eu.insales.ru/images/products/1/1739/108881611/5609_8.jpg https://static-eu.insales.ru/images/products/1/1740/108881612/5609_12-1.jpg https://static-eu.insales.ru/images/products/1/1741/108881613/chernyj-zeljonyj-2-500x500.jpg",{"$f":"DelUrl(A1,'имена файлов для удаления'!$A$1:$A$11)","v":"https://static-eu.insales.ru/images/products/1/5922/107149090/chillafishquadiebl_2.jpg https://static-eu.insales.ru/images/products/1/5925/107149093/quadielimechillafish.jpg https://static-eu.insales.ru/images/products/1/5927/107149095/Chillafish_Quadie_Pink_2.jpg https://static-eu.insales.ru/images/products/1/1736/108881608/5608_5.jpg"}]
["https://static-eu.insales.ru/images/products/1/5930/107149098/BegSmRidFantikGr_4.jpg https://static-eu.insales.ru/images/products/1/5932/107149100/skaldnoy-begovel-small-rider-fantik-red-wheel-turn_1.jpg https://static-eu.insales.ru/images/products/1/5935/107149103/skaldnoy-begovel-small-rider-fantik-red-side-2_1.jpg https://static-eu.insales.ru/images/products/1/5936/107149104/skaldnoy-begovel-small-rider-fantik-red-folded_1.jpg https://static-eu.insales.ru/images/products/1/5939/107149107/skaldnoy-begovel-small-rider-fantik-top-lay_1.jpg https://static-eu.insales.ru/images/products/1/5941/107149109/small-rider-fantik-box_1.jpg https://static-eu.insales.ru/images/products/1/1742/108881614/5608_1.jpg https://static-eu.insales.ru/images/products/1/1743/108881615/5608_4.jpg https://static-eu.insales.ru/images/products/1/1744/108881616/5609_4.jpg https://static-eu.insales.ru/images/products/1/1745/108881617/5609_7.jpg https://static-eu.insales.ru/images/products/1/1746/108881618/c8c3fe20fd567b7862010d02bce2e4be.jpg https://static-eu.insales.ru/images/products/1/1747/108881619/5608_5.jpg https://static-eu.insales.ru/images/products/1/1748/108881620/5608_6.jpg https://static-eu.insales.ru/images/products/1/1749/108881621/5608_7.jpg https://static-eu.insales.ru/images/products/1/1751/108881623/5609_8.jpg https://static-eu.insales.ru/images/products/1/1752/108881624/5609_12-1.jpg https://static-eu.insales.ru/images/products/1/1753/108881625/chernyj-zeljonyj-2-500x500.jpg",{"$f":"DelUrl(A2,'имена файлов для удаления'!$A$1:$A$11)","v":"https://static-eu.insales.ru/images/products/1/5930/107149098/BegSmRidFantikGr_4.jpg https://static-eu.insales.ru/images/products/1/5932/107149100/skaldnoy-begovel-small-rider-fantik-red-wheel-turn_1.jpg https://static-eu.insales.ru/images/products/1/5935/107149103/skaldnoy-begovel-small-rider-fantik-red-side-2_1.jpg https://static-eu.insales.ru/images/products/1/5936/107149104/skaldnoy-begovel-small-rider-fantik-red-folded_1.jpg https://static-eu.insales.ru/images/products/1/5939/107149107/skaldnoy-begovel-small-rider-fantik-top-lay_1.jpg https://static-eu.insales.ru/images/products/1/5941/107149109/small-rider-fantik-box_1.jpg https://static-eu.insales.ru/images/products/1/1747/108881619/5608_5.jpg"}]
["https://static-eu.insales.ru/images/products/1/5930/107149098/BegSmRidFantikGr_4.jpg https://static-eu.insales.ru/images/products/1/5932/107149100/skaldnoy-begovel-small-rider-fantik-red-wheel-turn_1.jpg https://static-eu.insales.ru/images/products/1/5935/107149103/skaldnoy-begovel-small-rider-fantik-red-side-2_1.jpg https://static-eu.insales.ru/images/products/1/5936/107149104/skaldnoy-begovel-small-rider-fantik-red-folded_1.jpg https://static-eu.insales.ru/images/products/1/5939/107149107/skaldnoy-begovel-small-rider-fantik-top-lay_1.jpg https://static-eu.insales.ru/images/products/1/5941/107149109/small-rider-fantik-box_1.jpg https://static-eu.insales.ru/images/products/1/1742/108881614/5608_1.jpg https://static-eu.insales.ru/images/products/1/1743/108881615/5608_4.jpg https://static-eu.insales.ru/images/products/1/1744/108881616/5609_4.jpg https://static-eu.insales.ru/images/products/1/1745/108881617/5609_7.jpg https://static-eu.insales.ru/images/products/1/1746/108881618/c8c3fe20fd567b7862010d02bce2e4be.jpg https://static-eu.insales.ru/images/products/1/1747/108881619/5608_5.jpg https://static-eu.insales.ru/images/products/1/1748/108881620/5608_6.jpg https://static-eu.insales.ru/images/products/1/1749/108881621/5608_7.jpg https://static-eu.insales.ru/images/products/1/1751/108881623/5609_8.jpg https://static-eu.insales.ru/images/products/1/1752/108881624/5609_12-1.jpg https://static-eu.insales.ru/images/products/1/1753/108881625/chernyj-zeljonyj-2-500x500.jpg",{"$f":"DelUrl(A3,'имена файлов для удаления'!$A$1:$A$11)","v":"https://static-eu.insales.ru/images/products/1/5930/107149098/BegSmRidFantikGr_4.jpg https://static-eu.insales.ru/images/products/1/5932/107149100/skaldnoy-begovel-small-rider-fantik-red-wheel-turn_1.jpg https://static-eu.insales.ru/images/products/1/5935/107149103/skaldnoy-begovel-small-rider-fantik-red-side-2_1.jpg https://static-eu.insales.ru/images/products/1/5936/107149104/skaldnoy-begovel-small-rider-fantik-red-folded_1.jpg https://static-eu.insales.ru/images/products/1/5939/107149107/skaldnoy-begovel-small-rider-fantik-top-lay_1.jpg https://static-eu.insales.ru/images/products/1/5941/107149109/small-rider-fantik-box_1.jpg https://static-eu.insales.ru/images/products/1/1747/108881619/5608_5.jpg"}]
["https://static-eu.insales.ru/images/products/1/5949/107149117/begovelik-zbike_blue_white_small_1.jpg https://static-eu.insales.ru/images/products/1/5951/107149119/begovel_velobeg-zbike_green_pink_small_1.jpg https://static-eu.insales.ru/images/products/1/5957/107149125/begovel-velobeg-zbike_black_blue_small_1.jpg https://static-eu.insales.ru/images/products/1/5961/107149129/begovel-velobeg-zbike_blue_pink_small_1.jpg https://static-eu.insales.ru/images/products/1/5962/107149130/BegovelZBIKEBLredb.jpg https://static-eu.insales.ru/images/products/1/5964/107149132/begunok-velokat-zbike_pink_green_small_1.jpg https://static-eu.insales.ru/images/products/1/5966/107149134/begunok-velokat-zbike_purple_teal_small_1.jpg https://static-eu.insales.ru/images/products/1/5968/107149136/velokat-begunok-zbike_pink_purple_small_1.jpg https://static-eu.insales.ru/images/products/1/5972/107149140/blue-and-pink-land-_1.jpg https://static-eu.insales.ru/images/products/1/5974/107149142/skate4u_toy-fair-2016_lifestyle_01_1.jpg https://static-eu.insales.ru/images/products/1/1894/108881766/5608_1.jpg https://static-eu.insales.ru/images/products/1/1895/108881767/5608_4.jpg https://static-eu.insales.ru/images/products/1/1896/108881768/5609_4.jpg https://static-eu.insales.ru/images/products/1/1897/108881769/5609_7.jpg https://static-eu.insales.ru/images/products/1/1898/108881770/c8c3fe20fd567b7862010d02bce2e4be.jpg https://static-eu.insales.ru/images/products/1/1899/108881771/5608_5.jpg https://static-eu.insales.ru/images/products/1/1900/108881772/5608_6.jpg https://static-eu.insales.ru/images/products/1/1901/108881773/5608_7.jpg https://static-eu.insales.ru/images/products/1/1902/108881774/5609_8.jpg https://static-eu.insales.ru/images/products/1/1903/108881775/5609_12-1.jpg https://static-eu.insales.ru/images/products/1/1904/108881776/chernyj-zeljonyj-2-500x500.jpg",{"$f":"DelUrl(A4,'имена файлов для удаления'!$A$1:$A$11)","v":"https://static-eu.insales.ru/images/products/1/5949/107149117/begovelik-zbike_blue_white_small_1.jpg https://static-eu.insales.ru/images/products/1/5951/107149119/begovel_velobeg-zbike_green_pink_small_1.jpg https://static-eu.insales.ru/images/products/1/5957/107149125/begovel-velobeg-zbike_black_blue_small_1.jpg https://static-eu.insales.ru/images/products/1/5961/107149129/begovel-velobeg-zbike_blue_pink_small_1.jpg https://static-eu.insales.ru/images/products/1/5962/107149130/BegovelZBIKEBLredb.jpg https://static-eu.insales.ru/images/products/1/5964/107149132/begunok-velokat-zbike_pink_green_small_1.jpg https://static-eu.insales.ru/images/products/1/5966/107149134/begunok-velokat-zbike_purple_teal_small_1.jpg https://static-eu.insales.ru/images/products/1/5968/107149136/velokat-begunok-zbike_pink_purple_small_1.jpg https://static-eu.insales.ru/images/products/1/5972/107149140/blue-and-pink-land-_1.jpg https://static-eu.insales.ru/images/products/1/5974/107149142/skate4u_toy-fair-2016_lifestyle_01_1.jpg https://static-eu.insales.ru/images/products/1/1899/108881771/5608_5.jpg"}]
["https://static-eu.insales.ru/images/products/1/5980/107149148/6mBWa0v7Q7.jpg https://static-eu.insales.ru/images/products/1/5982/107149150/9a5cd103-f15a-4a21-963b-0a4740f53e4e__1_.jpeg https://static-eu.insales.ru/images/products/1/5984/107149152/velobeg_capella_s-301_chernyyzelenyy_speccena.jpg https://static-eu.insales.ru/images/products/1/5986/107149154/YA0oRFcL3O.jpg https://static-eu.insales.ru/images/products/1/1754/108881626/5608_1.jpg https://static-eu.insales.ru/images/products/1/1755/108881627/5608_4.jpg https://static-eu.insales.ru/images/products/1/1756/108881628/5609_4.jpg https://static-eu.insales.ru/images/products/1/1757/108881629/5609_7.jpg https://static-eu.insales.ru/images/products/1/1759/108881631/c8c3fe20fd567b7862010d02bce2e4be.jpg https://static-eu.insales.ru/images/products/1/1760/108881632/5608_5.jpg https://static-eu.insales.ru/images/products/1/1761/108881633/5608_6.jpg https://static-eu.insales.ru/images/products/1/1762/108881634/5608_7.jpg https://static-eu.insales.ru/images/products/1/1763/108881635/5609_8.jpg https://static-eu.insales.ru/images/products/1/1764/108881636/5609_12-1.jpg https://static-eu.insales.ru/images/products/1/1765/108881637/chernyj-zeljonyj-2-500x500.jpg",{"$f":"DelUrl(A5,'имена файлов для удаления'!$A$1:$A$11)","v":"https://static-eu.insales.ru/images/products/1/5980/107149148/6mBWa0v7Q7.jpg https://static-eu.insales.ru/images/products/1/5982/107149150/9a5cd103-f15a-4a21-963b-0a4740f53e4e__1_.jpeg https://static-eu.insales.ru/images/products/1/5984/107149152/velobeg_capella_s-301_chernyyzelenyy_speccena.jpg https://static-eu.insales.ru/images/products/1/5986/107149154/YA0oRFcL3O.jpg https://static-eu.insales.ru/images/products/1/1760/108881632/5608_5.jpg"}]
["https://static-eu.insales.ru/images/products/1/5980/107149148/6mBWa0v7Q7.jpg https://static-eu.insales.ru/images/products/1/5982/107149150/9a5cd103-f15a-4a21-963b-0a4740f53e4e__1_.jpeg https://static-eu.insales.ru/images/products/1/5984/107149152/velobeg_capella_s-301_chernyyzelenyy_speccena.jpg https://static-eu.insales.ru/images/products/1/5986/107149154/YA0oRFcL3O.jpg https://static-eu.insales.ru/images/products/1/1754/108881626/5608_1.jpg https://static-eu.insales.ru/images/products/1/1755/108881627/5608_4.jpg https://static-eu.insales.ru/images/products/1/1756/108881628/5609_4.jpg https://static-eu.insales.ru/images/products/1/1757/108881629/5609_7.jpg https://static-eu.insales.ru/images/products/1/1759/108881631/c8c3fe20fd567b7862010d02bce2e4be.jpg https://static-eu.insales.ru/images/products/1/1760/108881632/5608_5.jpg https://static-eu.insales.ru/images/products/1/1761/108881633/5608_6.jpg https://static-eu.insales.ru/images/products/1/1762/108881634/5608_7.jpg https://static-eu.insales.ru/images/products/1/1763/108881635/5609_8.jpg https://static-eu.insales.ru/images/products/1/1764/108881636/5609_12-1.jpg https://static-eu.insales.ru/images/products/1/1765/108881637/chernyj-zeljonyj-2-500x500.jpg",{"$f":"DelUrl(A6,'имена файлов для удаления'!$A$1:$A$11)","v":"https://static-eu.insales.ru/images/products/1/5980/107149148/6mBWa0v7Q7.jpg https://static-eu.insales.ru/images/products/1/5982/107149150/9a5cd103-f15a-4a21-963b-0a4740f53e4e__1_.jpeg https://static-eu.insales.ru/images/products/1/5984/107149152/velobeg_capella_s-301_chernyyzelenyy_speccena.jpg https://static-eu.insales.ru/images/products/1/5986/107149154/YA0oRFcL3O.jpg https://static-eu.insales.ru/images/products/1/1760/108881632/5608_5.jpg"}]
["https://static-eu.insales.ru/images/products/1/5980/107149148/6mBWa0v7Q7.jpg https://static-eu.insales.ru/images/products/1/5982/107149150/9a5cd103-f15a-4a21-963b-0a4740f53e4e__1_.jpeg https://static-eu.insales.ru/images/products/1/5984/107149152/velobeg_capella_s-301_chernyyzelenyy_speccena.jpg https://static-eu.insales.ru/images/products/1/5986/107149154/YA0oRFcL3O.jpg https://static-eu.insales.ru/images/products/1/1754/108881626/5608_1.jpg https://static-eu.insales.ru/images/products/1/1755/108881627/5608_4.jpg https://static-eu.insales.ru/images/products/1/1756/108881628/5609_4.jpg https://static-eu.insales.ru/images/products/1/1757/108881629/5609_7.jpg https://static-eu.insales.ru/images/products/1/1759/108881631/c8c3fe20fd567b7862010d02bce2e4be.jpg https://static-eu.insales.ru/images/products/1/1760/108881632/5608_5.jpg https://static-eu.insales.ru/images/products/1/1761/108881633/5608_6.jpg https://static-eu.insales.ru/images/products/1/1762/108881634/5608_7.jpg https://static-eu.insales.ru/images/products/1/1763/108881635/5609_8.jpg https://static-eu.insales.ru/images/products/1/1764/108881636/5609_12-1.jpg https://static-eu.insales.ru/images/products/1/1765/108881637/chernyj-zeljonyj-2-500x500.jpg",{"$f":"DelUrl(A7,'имена файлов для удаления'!$A$1:$A$11)","v":"https://static-eu.insales.ru/images/products/1/5980/107149148/6mBWa0v7Q7.jpg https://static-eu.insales.ru/images/products/1/5982/107149150/9a5cd103-f15a-4a21-963b-0a4740f53e4e__1_.jpeg https://static-eu.insales.ru/images/products/1/5984/107149152/velobeg_capella_s-301_chernyyzelenyy_speccena.jpg https://static-eu.insales.ru/images/products/1/5986/107149154/YA0oRFcL3O.jpg https://static-eu.insales.ru/images/products/1/1760/108881632/5608_5.jpg"}]
["https://static-eu.insales.ru/images/products/1/3758/108883630/5608_1.jpg https://static-eu.insales.ru/images/products/1/3759/108883631/5608_4.jpg https://static-eu.insales.ru/images/products/1/3760/108883632/5609_4.jpg https://static-eu.insales.ru/images/products/1/3761/108883633/5609_7.jpg https://static-eu.insales.ru/images/products/1/3762/108883634/c8c3fe20fd567b7862010d02bce2e4be.jpg https://static-eu.insales.ru/images/products/1/3763/108883635/5608_5.jpg https://static-eu.insales.ru/images/products/1/3764/108883636/5608_6.jpg https://static-eu.insales.ru/images/products/1/3765/108883637/5608_7.jpg https://static-eu.insales.ru/images/products/1/3766/108883638/5609_8.jpg https://static-eu.insales.ru/images/products/1/3776/108883648/5609_12-1.jpg https://static-eu.insales.ru/images/products/1/3777/108883649/chernyj-zeljonyj-2-500x500.jpg",{"$f":"DelUrl(A8,'имена файлов для удаления'!$A$1:$A$11)","v":"https://static-eu.insales.ru/images/products/1/3763/108883635/5608_5.jpg"}]
["https://static-eu.insales.ru/images/products/1/3778/108883650/5608_1.jpg https://static-eu.insales.ru/images/products/1/3779/108883651/5608_4.jpg https://static-eu.insales.ru/images/products/1/3780/108883652/5609_4.jpg https://static-eu.insales.ru/images/products/1/3781/108883653/5609_7.jpg https://static-eu.insales.ru/images/products/1/3782/108883654/c8c3fe20fd567b7862010d02bce2e4be.jpg https://static-eu.insales.ru/images/products/1/3783/108883655/5608_5.jpg https://static-eu.insales.ru/images/products/1/3784/108883656/5608_6.jpg https://static-eu.insales.ru/images/products/1/3785/108883657/5608_7.jpg https://static-eu.insales.ru/images/products/1/3786/108883658/5609_8.jpg https://static-eu.insales.ru/images/products/1/3787/108883659/5609_12-1.jpg https://static-eu.insales.ru/images/products/1/3788/108883660/chernyj-zeljonyj-2-500x500.jpg",{"$f":"DelUrl(A9,'имена файлов для удаления'!$A$1:$A$11)","v":"https://static-eu.insales.ru/images/products/1/3783/108883655/5608_5.jpg"}]
["https://static-eu.insales.ru/images/products/1/3789/108883661/5608_1.jpg https://static-eu.insales.ru/images/products/1/3790/108883662/5608_4.jpg https://static-eu.insales.ru/images/products/1/3791/108883663/5609_4.jpg https://static-eu.insales.ru/images/products/1/3793/108883665/5609_7.jpg https://static-eu.insales.ru/images/products/1/3794/108883666/c8c3fe20fd567b7862010d02bce2e4be.jpg https://static-eu.insales.ru/images/products/1/3795/108883667/5608_5.jpg https://static-eu.insales.ru/images/products/1/3796/108883668/5608_6.jpg https://static-eu.insales.ru/images/products/1/3797/108883669/5608_7.jpg https://static-eu.insales.ru/images/products/1/3798/108883670/5609_8.jpg https://static-eu.insales.ru/images/products/1/3799/108883671/5609_12-1.jpg https://static-eu.insales.ru/images/products/1/3800/108883672/chernyj-zeljonyj-2-500x500.jpg",{"$f":"DelUrl(A10,'имена файлов для удаления'!$A$1:$A$11)","v":"https://static-eu.insales.ru/images/products/1/3795/108883667/5608_5.jpg"}]
["https://static-eu.insales.ru/images/products/1/5991/107149159/73155.970x0.jpg https://static-eu.insales.ru/images/products/1/5994/107149162/03ec03a0-b30d-4635-9618-3fd1af8225ff.jpeg https://static-eu.insales.ru/images/products/1/5997/107149165/54332.970x0.jpg https://static-eu.insales.ru/images/products/1/5998/107149166/54333.970x0.jpg https://static-eu.insales.ru/images/products/1/6001/107149169/54334.970x0.jpg https://static-eu.insales.ru/images/products/1/1916/108881788/5608_1.jpg https://static-eu.insales.ru/images/products/1/1917/108881789/5608_4.jpg https://static-eu.insales.ru/images/products/1/1918/108881790/5609_4.jpg https://static-eu.insales.ru/images/products/1/1919/108881791/5609_7.jpg https://static-eu.insales.ru/images/products/1/1920/108881792/c8c3fe20fd567b7862010d02bce2e4be.jpg https://static-eu.insales.ru/images/products/1/1921/108881793/5608_5.jpg https://static-eu.insales.ru/images/products/1/1922/108881794/5608_6.jpg https://static-eu.insales.ru/images/products/1/1923/108881795/5608_7.jpg https://static-eu.insales.ru/images/products/1/1924/108881796/5609_8.jpg https://static-eu.insales.ru/images/products/1/1925/108881797/5609_12-1.jpg https://static-eu.insales.ru/images/products/1/1926/108881798/chernyj-zeljonyj-2-500x500.jpg",{"$f":"DelUrl(A11,'имена файлов для удаления'!$A$1:$A$11)","v":"https://static-eu.insales.ru/images/products/1/5991/107149159/73155.970x0.jpg https://static-eu.insales.ru/images/products/1/5994/107149162/03ec03a0-b30d-4635-9618-3fd1af8225ff.jpeg https://static-eu.insales.ru/images/products/1/5997/107149165/54332.970x0.jpg https://static-eu.insales.ru/images/products/1/5998/107149166/54333.970x0.jpg https://static-eu.insales.ru/images/products/1/6001/107149169/54334.970x0.jpg https://static-eu.insales.ru/images/products/1/1921/108881793/5608_5.jpg"}]
["https://static-eu.insales.ru/images/products/1/6004/107149172/f15840-754_1_.jpg https://static-eu.insales.ru/images/products/1/2914/108874594/5608_1.jpg https://static-eu.insales.ru/images/products/1/2915/108874595/5608_4.jpg https://static-eu.insales.ru/images/products/1/2916/108874596/5609_4.jpg https://static-eu.insales.ru/images/products/1/2917/108874597/5609_7.jpg https://static-eu.insales.ru/images/products/1/2918/108874598/c8c3fe20fd567b7862010d02bce2e4be.jpg https://static-eu.insales.ru/images/products/1/2919/108874599/5608_5.jpg https://static-eu.insales.ru/images/products/1/2920/108874600/5608_6.jpg https://static-eu.insales.ru/images/products/1/2921/108874601/5608_7.jpg https://static-eu.insales.ru/images/products/1/2922/108874602/5609_8.jpg https://static-eu.insales.ru/images/products/1/2923/108874603/5609_12-1.jpg https://static-eu.insales.ru/images/products/1/2924/108874604/chernyj-zeljonyj-2-500x500.jpg",{"$f":"DelUrl(A12,'имена файлов для удаления'!$A$1:$A$11)","v":"https://static-eu.insales.ru/images/products/1/6004/107149172/f15840-754_1_.jpg https://static-eu.insales.ru/images/products/1/2919/108874599/5608_5.jpg"}]
["https://static-eu.insales.ru/images/products/1/995/108880867/5608_1.jpg https://static-eu.insales.ru/images/products/1/996/108880868/5608_4.jpg https://static-eu.insales.ru/images/products/1/997/108880869/5609_4.jpg https://static-eu.insales.ru/images/products/1/998/108880870/5609_7.jpg https://static-eu.insales.ru/images/products/1/999/108880871/c8c3fe20fd567b7862010d02bce2e4be.jpg https://static-eu.insales.ru/images/products/1/1002/108880874/5608_5.jpg https://static-eu.insales.ru/images/products/1/1004/108880876/5608_6.jpg https://static-eu.insales.ru/images/products/1/1007/108880879/5608_7.jpg https://static-eu.insales.ru/images/products/1/1008/108880880/5609_8.jpg https://static-eu.insales.ru/images/products/1/1010/108880882/5609_12-1.jpg https://static-eu.insales.ru/images/products/1/1011/108880883/chernyj-zeljonyj-2-500x500.jpg",{"$f":"DelUrl(A13,'имена файлов для удаления'!$A$1:$A$11)","v":"https://static-eu.insales.ru/images/products/1/1002/108880874/5608_5.jpg"}]
["https://static-eu.insales.ru/images/products/1/3722/108588682/11103.970.jpg https://static-eu.insales.ru/images/products/1/3723/108588683/11104.970.jpg https://static-eu.insales.ru/images/products/1/3724/108588684/11105.970.jpg https://static-eu.insales.ru/images/products/1/3725/108588685/11106.970.jpg https://static-eu.insales.ru/images/products/1/3726/108588686/11107.970.jpg",{"$f":"DelUrl(A14,'имена файлов для удаления'!$A$1:$A$11)","v":"https://static-eu.insales.ru/images/products/1/3722/108588682/11103.970.jpg https://static-eu.insales.ru/images/products/1/3723/108588683/11104.970.jpg https://static-eu.insales.ru/images/products/1/3724/108588684/11105.970.jpg https://static-eu.insales.ru/images/products/1/3725/108588685/11106.970.jpg https://static-eu.insales.ru/images/products/1/3726/108588686/11107.970.jpg"}]
["https://static-eu.insales.ru/images/products/1/1607/108594759/38881690_w800_h640_maximicroredt.jpg https://static-eu.insales.ru/images/products/1/1608/108594760/38881691_w800_h640_maximicroredt3.jpg https://static-eu.insales.ru/images/products/1/1609/108594761/38881693_w800_h640_maximicroredt2.jpg https://static-eu.insales.ru/images/products/1/1013/108880885/5608_1.jpg https://static-eu.insales.ru/images/products/1/1014/108880886/5608_4.jpg https://static-eu.insales.ru/images/products/1/1015/108880887/5609_4.jpg https://static-eu.insales.ru/images/products/1/1016/108880888/5609_7.jpg https://static-eu.insales.ru/images/products/1/1017/108880889/c8c3fe20fd567b7862010d02bce2e4be.jpg https://static-eu.insales.ru/images/products/1/1018/108880890/5608_5.jpg https://static-eu.insales.ru/images/products/1/1019/108880891/5608_6.jpg https://static-eu.insales.ru/images/products/1/1020/108880892/5608_7.jpg https://static-eu.insales.ru/images/products/1/1021/108880893/5609_8.jpg https://static-eu.insales.ru/images/products/1/1023/108880895/5609_12-1.jpg https://static-eu.insales.ru/images/products/1/1026/108880898/chernyj-zeljonyj-2-500x500.jpg",{"$f":"DelUrl(A15,'имена файлов для удаления'!$A$1:$A$11)","v":"https://static-eu.insales.ru/images/products/1/1607/108594759/38881690_w800_h640_maximicroredt.jpg https://static-eu.insales.ru/images/products/1/1608/108594760/38881691_w800_h640_maximicroredt3.jpg https://static-eu.insales.ru/images/products/1/1609/108594761/38881693_w800_h640_maximicroredt2.jpg https://static-eu.insales.ru/images/products/1/1018/108880890/5608_5.jpg"}]
["https://static-eu.insales.ru/images/products/1/6043/107149211/icon_popup.jpg https://static-eu.insales.ru/images/products/1/6044/107149212/src_popup__1_.jpg https://static-eu.insales.ru/images/products/1/1118/108880990/5608_1.jpg https://static-eu.insales.ru/images/products/1/1119/108880991/5608_4.jpg https://static-eu.insales.ru/images/products/1/1120/108880992/5609_4.jpg https://static-eu.insales.ru/images/products/1/1121/108880993/5609_7.jpg https://static-eu.insales.ru/images/products/1/1122/108880994/c8c3fe20fd567b7862010d02bce2e4be.jpg https://static-eu.insales.ru/images/products/1/1123/108880995/5608_5.jpg https://static-eu.insales.ru/images/products/1/1124/108880996/5608_6.jpg https://static-eu.insales.ru/images/products/1/1125/108880997/5608_7.jpg https://static-eu.insales.ru/images/products/1/1127/108880999/5609_8.jpg https://static-eu.insales.ru/images/products/1/1129/108881001/5609_12-1.jpg https://static-eu.insales.ru/images/products/1/1131/108881003/chernyj-zeljonyj-2-500x500.jpg",{"$f":"DelUrl(A16,'имена файлов для удаления'!$A$1:$A$11)","v":"https://static-eu.insales.ru/images/products/1/6043/107149211/icon_popup.jpg https://static-eu.insales.ru/images/products/1/6044/107149212/src_popup__1_.jpg https://static-eu.insales.ru/images/products/1/1123/108880995/5608_5.jpg"}]
["https://static-eu.insales.ru/images/products/1/5570/108598722/ZcR9F4k3xd.jpg https://static-eu.insales.ru/images/products/1/5568/108598720/FXmuDs07o5.jpg https://static-eu.insales.ru/images/products/1/5569/108598721/ldb8wKq9Rw.jpg https://static-eu.insales.ru/images/products/1/5571/108598723/ZcYwgIIlmw.jpg",{"$f":"DelUrl(A17,'имена файлов для удаления'!$A$1:$A$11)","v":"https://static-eu.insales.ru/images/products/1/5570/108598722/ZcR9F4k3xd.jpg https://static-eu.insales.ru/images/products/1/5568/108598720/FXmuDs07o5.jpg https://static-eu.insales.ru/images/products/1/5569/108598721/ldb8wKq9Rw.jpg https://static-eu.insales.ru/images/products/1/5571/108598723/ZcYwgIIlmw.jpg"}]
["https://static-eu.insales.ru/images/products/1/6072/107149240/images.jpg https://static-eu.insales.ru/images/products/1/1378/108881250/5608_1.jpg https://static-eu.insales.ru/images/products/1/1381/108881253/5608_4.jpg https://static-eu.insales.ru/images/products/1/1382/108881254/5609_4.jpg https://static-eu.insales.ru/images/products/1/1384/108881256/5609_7.jpg https://static-eu.insales.ru/images/products/1/1386/108881258/c8c3fe20fd567b7862010d02bce2e4be.jpg https://static-eu.insales.ru/images/products/1/1388/108881260/5608_5.jpg https://static-eu.insales.ru/images/products/1/1390/108881262/5608_6.jpg https://static-eu.insales.ru/images/products/1/1392/108881264/5608_7.jpg https://static-eu.insales.ru/images/products/1/1394/108881266/5609_8.jpg https://static-eu.insales.ru/images/products/1/1396/108881268/5609_12-1.jpg https://static-eu.insales.ru/images/products/1/1397/108881269/chernyj-zeljonyj-2-500x500.jpg",{"$f":"DelUrl(A18,'имена файлов для удаления'!$A$1:$A$11)","v":"https://static-eu.insales.ru/images/products/1/6072/107149240/images.jpg https://static-eu.insales.ru/images/products/1/1388/108881260/5608_5.jpg"}]
["https://static-eu.insales.ru/images/products/1/6074/107149242/data-samokaty-explore-8-connect-pink-610x610.jpg https://static-eu.insales.ru/images/products/1/6081/107149249/data-samokaty-explore-8-connect-red-610x610.jpg https://static-eu.insales.ru/images/products/1/2941/108874621/5608_1.jpg https://static-eu.insales.ru/images/products/1/2942/108874622/5608_4.jpg https://static-eu.insales.ru/images/products/1/2944/108874624/5609_4.jpg https://static-eu.insales.ru/images/products/1/2945/108874625/5609_7.jpg https://static-eu.insales.ru/images/products/1/2947/108874627/c8c3fe20fd567b7862010d02bce2e4be.jpg https://static-eu.insales.ru/images/products/1/2948/108874628/5608_5.jpg https://static-eu.insales.ru/images/products/1/2949/108874629/5608_6.jpg https://static-eu.insales.ru/images/products/1/2950/108874630/5608_7.jpg https://static-eu.insales.ru/images/products/1/2952/108874632/5609_8.jpg https://static-eu.insales.ru/images/products/1/2955/108874635/5609_12-1.jpg https://static-eu.insales.ru/images/products/1/2956/108874636/chernyj-zeljonyj-2-500x500.jpg",{"$f":"DelUrl(A19,'имена файлов для удаления'!$A$1:$A$11)","v":"https://static-eu.insales.ru/images/products/1/6074/107149242/data-samokaty-explore-8-connect-pink-610x610.jpg https://static-eu.insales.ru/images/products/1/6081/107149249/data-samokaty-explore-8-connect-red-610x610.jpg https://static-eu.insales.ru/images/products/1/2948/108874628/5608_5.jpg"}]
["https://static-eu.insales.ru/images/products/1/6074/107149242/data-samokaty-explore-8-connect-pink-610x610.jpg https://static-eu.insales.ru/images/products/1/6081/107149249/data-samokaty-explore-8-connect-red-610x610.jpg https://static-eu.insales.ru/images/products/1/2941/108874621/5608_1.jpg https://static-eu.insales.ru/images/products/1/2942/108874622/5608_4.jpg https://static-eu.insales.ru/images/products/1/2944/108874624/5609_4.jpg https://static-eu.insales.ru/images/products/1/2945/108874625/5609_7.jpg https://static-eu.insales.ru/images/products/1/2947/108874627/c8c3fe20fd567b7862010d02bce2e4be.jpg https://static-eu.insales.ru/images/products/1/2948/108874628/5608_5.jpg https://static-eu.insales.ru/images/products/1/2949/108874629/5608_6.jpg https://static-eu.insales.ru/images/products/1/2950/108874630/5608_7.jpg https://static-eu.insales.ru/images/products/1/2952/108874632/5609_8.jpg https://static-eu.insales.ru/images/products/1/2955/108874635/5609_12-1.jpg https://static-eu.insales.ru/images/products/1/2956/108874636/chernyj-zeljonyj-2-500x500.jpg",{"$f":"DelUrl(A20,'имена файлов для удаления'!$A$1:$A$11)","v":"https://static-eu.insales.ru/images/products/1/6074/107149242/data-samokaty-explore-8-connect-pink-610x610.jpg https://static-eu.insales.ru/images/products/1/6081/107149249/data-samokaty-explore-8-connect-red-610x610.jpg https://static-eu.insales.ru/images/products/1/2948/108874628/5608_5.jpg"}]
["https://static-eu.insales.ru/images/products/1/6083/107149251/img8148_11702_big.jpg https://static-eu.insales.ru/images/products/1/6086/107149254/data-samokaty-explore-8-craft-black-01-900x900.jpg https://static-eu.insales.ru/images/products/1/6090/107149258/data-samokaty-explore-8-craft-chehol-01-600x600.jpg https://static-eu.insales.ru/images/products/1/6091/107149259/data-samokaty-explore-8-craft-detal-600x600.jpg https://static-eu.insales.ru/images/products/1/1399/108881271/5608_1.jpg https://static-eu.insales.ru/images/products/1/1400/108881272/5608_4.jpg https://static-eu.insales.ru/images/products/1/1402/108881274/5609_4.jpg https://static-eu.insales.ru/images/products/1/1404/108881276/5609_7.jpg https://static-eu.insales.ru/images/products/1/1406/108881278/c8c3fe20fd567b7862010d02bce2e4be.jpg https://static-eu.insales.ru/images/products/1/1408/108881280/5608_5.jpg https://static-eu.insales.ru/images/products/1/1410/108881282/5608_6.jpg https://static-eu.insales.ru/images/products/1/1411/108881283/5608_7.jpg https://static-eu.insales.ru/images/products/1/1412/108881284/5609_8.jpg https://static-eu.insales.ru/images/products/1/1413/108881285/5609_12-1.jpg https://static-eu.insales.ru/images/products/1/1414/108881286/chernyj-zeljonyj-2-500x500.jpg",{"$f":"DelUrl(A21,'имена файлов для удаления'!$A$1:$A$11)","v":"https://static-eu.insales.ru/images/products/1/6083/107149251/img8148_11702_big.jpg https://static-eu.insales.ru/images/products/1/6086/107149254/data-samokaty-explore-8-craft-black-01-900x900.jpg https://static-eu.insales.ru/images/products/1/6090/107149258/data-samokaty-explore-8-craft-chehol-01-600x600.jpg https://static-eu.insales.ru/images/products/1/6091/107149259/data-samokaty-explore-8-craft-detal-600x600.jpg https://static-eu.insales.ru/images/products/1/1408/108881280/5608_5.jpg"}]
["https://static-eu.insales.ru/images/products/1/6083/107149251/img8148_11702_big.jpg https://static-eu.insales.ru/images/products/1/6086/107149254/data-samokaty-explore-8-craft-black-01-900x900.jpg https://static-eu.insales.ru/images/products/1/6090/107149258/data-samokaty-explore-8-craft-chehol-01-600x600.jpg https://static-eu.insales.ru/images/products/1/6091/107149259/data-samokaty-explore-8-craft-detal-600x600.jpg https://static-eu.insales.ru/images/products/1/1399/108881271/5608_1.jpg https://static-eu.insales.ru/images/products/1/1400/108881272/5608_4.jpg https://static-eu.insales.ru/images/products/1/1402/108881274/5609_4.jpg https://static-eu.insales.ru/images/products/1/1404/108881276/5609_7.jpg https://static-eu.insales.ru/images/products/1/1406/108881278/c8c3fe20fd567b7862010d02bce2e4be.jpg https://static-eu.insales.ru/images/products/1/1408/108881280/5608_5.jpg https://static-eu.insales.ru/images/products/1/1410/108881282/5608_6.jpg https://static-eu.insales.ru/images/products/1/1411/108881283/5608_7.jpg https://static-eu.insales.ru/images/products/1/1412/108881284/5609_8.jpg https://static-eu.insales.ru/images/products/1/1413/108881285/5609_12-1.jpg https://static-eu.insales.ru/images/products/1/1414/108881286/chernyj-zeljonyj-2-500x500.jpg",{"$f":"DelUrl(A22,'имена файлов для удаления'!$A$1:$A$11)","v":"https://static-eu.insales.ru/images/products/1/6083/107149251/img8148_11702_big.jpg https://static-eu.insales.ru/images/products/1/6086/107149254/data-samokaty-explore-8-craft-black-01-900x900.jpg https://static-eu.insales.ru/images/products/1/6090/107149258/data-samokaty-explore-8-craft-chehol-01-600x600.jpg https://static-eu.insales.ru/images/products/1/6091/107149259/data-samokaty-explore-8-craft-detal-600x600.jpg https://static-eu.insales.ru/images/products/1/1408/108881280/5608_5.jpg"}]
["https://static-eu.insales.ru/images/products/1/5071/108663759/3434.jpg",{"$f":"DelUrl(A23,'имена файлов для удаления'!$A$1:$A$11)","v":"https://static-eu.insales.ru/images/products/1/5071/108663759/3434.jpg"}]
["https://static-eu.insales.ru/images/products/1/5756/108664444/samokat-dixel-2-610x610r4_enl.jpg",{"$f":"DelUrl(A24,'имена файлов для удаления'!$A$1:$A$11)","v":"https://static-eu.insales.ru/images/products/1/5756/108664444/samokat-dixel-2-610x610r4_enl.jpg"}]
["https://static-eu.insales.ru/images/products/1/6105/107149273/83691.970x0.jpg",{"$f":"DelUrl(A25,'имена файлов для удаления'!$A$1:$A$11)","v":"https://static-eu.insales.ru/images/products/1/6105/107149273/83691.970x0.jpg"}]
["https://static-eu.insales.ru/images/products/1/6114/107149282/i.jpg https://static-eu.insales.ru/images/products/1/1426/108881298/5608_1.jpg https://static-eu.insales.ru/images/products/1/1427/108881299/5608_4.jpg https://static-eu.insales.ru/images/products/1/1428/108881300/5609_4.jpg https://static-eu.insales.ru/images/products/1/1429/108881301/5609_7.jpg https://static-eu.insales.ru/images/products/1/1430/108881302/c8c3fe20fd567b7862010d02bce2e4be.jpg https://static-eu.insales.ru/images/products/1/1431/108881303/5608_5.jpg https://static-eu.insales.ru/images/products/1/1432/108881304/5608_6.jpg https://static-eu.insales.ru/images/products/1/1433/108881305/5608_7.jpg https://static-eu.insales.ru/images/products/1/1434/108881306/5609_8.jpg https://static-eu.insales.ru/images/products/1/1435/108881307/5609_12-1.jpg https://static-eu.insales.ru/images/products/1/1436/108881308/chernyj-zeljonyj-2-500x500.jpg",{"$f":"DelUrl(A26,'имена файлов для удаления'!$A$1:$A$11)","v":"https://static-eu.insales.ru/images/products/1/6114/107149282/i.jpg https://static-eu.insales.ru/images/products/1/1431/108881303/5608_5.jpg"}]
["https://static-eu.insales.ru/images/products/1/6120/107149288/img8152_34732_big.jpg https://static-eu.insales.ru/images/products/1/6130/107149298/img8153_29438_big.jpg https://static-eu.insales.ru/images/products/1/6133/107149301/img8154_27417_big.jpg https://static-eu.insales.ru/images/products/1/2987/108874667/5608_1.jpg https://static-eu.insales.ru/images/products/1/2988/108874668/5608_4.jpg https://static-eu.insales.ru/images/products/1/2989/108874669/5609_4.jpg https://static-eu.insales.ru/images/products/1/2990/108874670/5609_7.jpg https://static-eu.insales.ru/images/products/1/2991/108874671/c8c3fe20fd567b7862010d02bce2e4be.jpg https://static-eu.insales.ru/images/products/1/2992/108874672/5608_5.jpg https://static-eu.insales.ru/images/products/1/2993/108874673/5608_6.jpg https://static-eu.insales.ru/images/products/1/2994/108874674/5608_7.jpg https://static-eu.insales.ru/images/products/1/2995/108874675/5609_8.jpg https://static-eu.insales.ru/images/products/1/2996/108874676/5609_12-1.jpg https://static-eu.insales.ru/images/products/1/2997/108874677/chernyj-zeljonyj-2-500x500.jpg",{"$f":"DelUrl(A27,'имена файлов для удаления'!$A$1:$A$11)","v":"https://static-eu.insales.ru/images/products/1/6120/107149288/img8152_34732_big.jpg https://static-eu.insales.ru/images/products/1/6130/107149298/img8153_29438_big.jpg https://static-eu.insales.ru/images/products/1/6133/107149301/img8154_27417_big.jpg https://static-eu.insales.ru/images/products/1/2992/108874672/5608_5.jpg"}]
["https://static-eu.insales.ru/images/products/1/6120/107149288/img8152_34732_big.jpg https://static-eu.insales.ru/images/products/1/6130/107149298/img8153_29438_big.jpg https://static-eu.insales.ru/images/products/1/6133/107149301/img8154_27417_big.jpg https://static-eu.insales.ru/images/products/1/2987/108874667/5608_1.jpg https://static-eu.insales.ru/images/products/1/2988/108874668/5608_4.jpg https://static-eu.insales.ru/images/products/1/2989/108874669/5609_4.jpg https://static-eu.insales.ru/images/products/1/2990/108874670/5609_7.jpg https://static-eu.insales.ru/images/products/1/2991/108874671/c8c3fe20fd567b7862010d02bce2e4be.jpg https://static-eu.insales.ru/images/products/1/2992/108874672/5608_5.jpg https://static-eu.insales.ru/images/products/1/2993/108874673/5608_6.jpg https://static-eu.insales.ru/images/products/1/2994/108874674/5608_7.jpg https://static-eu.insales.ru/images/products/1/2995/108874675/5609_8.jpg https://static-eu.insales.ru/images/products/1/2996/108874676/5609_12-1.jpg https://static-eu.insales.ru/images/products/1/2997/108874677/chernyj-zeljonyj-2-500x500.jpg",{"$f":"DelUrl(A28,'имена файлов для удаления'!$A$1:$A$11)","v":"https://static-eu.insales.ru/images/products/1/6120/107149288/img8152_34732_big.jpg https://static-eu.insales.ru/images/products/1/6130/107149298/img8153_29438_big.jpg https://static-eu.insales.ru/images/products/1/6133/107149301/img8154_27417_big.jpg https://static-eu.insales.ru/images/products/1/2992/108874672/5608_5.jpg"}]
["https://static-eu.insales.ru/images/products/1/6120/107149288/img8152_34732_big.jpg https://static-eu.insales.ru/images/products/1/6130/107149298/img8153_29438_big.jpg https://static-eu.insales.ru/images/products/1/6133/107149301/img8154_27417_big.jpg https://static-eu.insales.ru/images/products/1/2987/108874667/5608_1.jpg https://static-eu.insales.ru/images/products/1/2988/108874668/5608_4.jpg https://static-eu.insales.ru/images/products/1/2989/108874669/5609_4.jpg https://static-eu.insales.ru/images/products/1/2990/108874670/5609_7.jpg https://static-eu.insales.ru/images/products/1/2991/108874671/c8c3fe20fd567b7862010d02bce2e4be.jpg https://static-eu.insales.ru/images/products/1/2992/108874672/5608_5.jpg https://static-eu.insales.ru/images/products/1/2993/108874673/5608_6.jpg https://static-eu.insales.ru/images/products/1/2994/108874674/5608_7.jpg https://static-eu.insales.ru/images/products/1/2995/108874675/5609_8.jpg https://static-eu.insales.ru/images/products/1/2996/108874676/5609_12-1.jpg https://static-eu.insales.ru/images/products/1/2997/108874677/chernyj-zeljonyj-2-500x500.jpg",{"$f":"DelUrl(A29,'имена файлов для удаления'!$A$1:$A$11)","v":"https://static-eu.insales.ru/images/products/1/6120/107149288/img8152_34732_big.jpg https://static-eu.insales.ru/images/products/1/6130/107149298/img8153_29438_big.jpg https://static-eu.insales.ru/images/products/1/6133/107149301/img8154_27417_big.jpg https://static-eu.insales.ru/images/products/1/2992/108874672/5608_5.jpg"}]
["https://static-eu.insales.ru/images/products/1/6120/107149288/img8152_34732_big.jpg https://static-eu.insales.ru/images/products/1/6130/107149298/img8153_29438_big.jpg https://static-eu.insales.ru/images/products/1/6133/107149301/img8154_27417_big.jpg https://static-eu.insales.ru/images/products/1/2987/108874667/5608_1.jpg https://static-eu.insales.ru/images/products/1/2988/108874668/5608_4.jpg https://static-eu.insales.ru/images/products/1/2989/108874669/5609_4.jpg https://static-eu.insales.ru/images/products/1/2990/108874670/5609_7.jpg https://static-eu.insales.ru/images/products/1/2991/108874671/c8c3fe20fd567b7862010d02bce2e4be.jpg https://static-eu.insales.ru/images/products/1/2992/108874672/5608_5.jpg https://static-eu.insales.ru/images/products/1/2993/108874673/5608_6.jpg https://static-eu.insales.ru/images/products/1/2994/108874674/5608_7.jpg https://static-eu.insales.ru/images/products/1/2995/108874675/5609_8.jpg https://static-eu.insales.ru/images/products/1/2996/108874676/5609_12-1.jpg https://static-eu.insales.ru/images/products/1/2997/108874677/chernyj-zeljonyj-2-500x500.jpg",{"$f":"DelUrl(A30,'имена файлов для удаления'!$A$1:$A$11)","v":"https://static-eu.insales.ru/images/products/1/6120/107149288/img8152_34732_big.jpg https://static-eu.insales.ru/images/products/1/6130/107149298/img8153_29438_big.jpg https://static-eu.insales.ru/images/products/1/6133/107149301/img8154_27417_big.jpg https://static-eu.insales.ru/images/products/1/2992/108874672/5608_5.jpg"}]
["https://static-eu.insales.ru/images/products/1/6136/107149304/25199.970.jpg https://static-eu.insales.ru/images/products/1/1437/108881309/5608_1.jpg https://static-eu.insales.ru/images/products/1/1438/108881310/5608_4.jpg https://static-eu.insales.ru/images/products/1/1439/108881311/5609_4.jpg https://static-eu.insales.ru/images/products/1/1440/108881312/5609_7.jpg https://static-eu.insales.ru/images/products/1/1441/108881313/c8c3fe20fd567b7862010d02bce2e4be.jpg https://static-eu.insales.ru/images/products/1/1442/108881314/5608_5.jpg https://static-eu.insales.ru/images/products/1/1443/108881315/5608_6.jpg https://static-eu.insales.ru/images/products/1/1444/108881316/5608_7.jpg https://static-eu.insales.ru/images/products/1/1445/108881317/5609_8.jpg https://static-eu.insales.ru/images/products/1/1446/108881318/5609_12-1.jpg https://static-eu.insales.ru/images/products/1/1447/108881319/chernyj-zeljonyj-2-500x500.jpg",{"$f":"DelUrl(A31,'имена файлов для удаления'!$A$1:$A$11)","v":"https://static-eu.insales.ru/images/products/1/6136/107149304/25199.970.jpg https://static-eu.insales.ru/images/products/1/1442/108881314/5608_5.jpg"}]
["https://static-eu.insales.ru/images/products/1/6171/107149339/379.500x0.jpg https://static-eu.insales.ru/images/products/1/6173/107149341/380.500x0.jpg https://static-eu.insales.ru/images/products/1/2998/108874678/5608_1.jpg https://static-eu.insales.ru/images/products/1/2999/108874679/5608_4.jpg https://static-eu.insales.ru/images/products/1/3000/108874680/5609_4.jpg https://static-eu.insales.ru/images/products/1/3001/108874681/5609_7.jpg https://static-eu.insales.ru/images/products/1/3002/108874682/c8c3fe20fd567b7862010d02bce2e4be.jpg https://static-eu.insales.ru/images/products/1/3004/108874684/5608_5.jpg https://static-eu.insales.ru/images/products/1/3005/108874685/5608_6.jpg https://static-eu.insales.ru/images/products/1/3006/108874686/5608_7.jpg https://static-eu.insales.ru/images/products/1/3007/108874687/5609_8.jpg https://static-eu.insales.ru/images/products/1/3008/108874688/5609_12-1.jpg https://static-eu.insales.ru/images/products/1/3009/108874689/chernyj-zeljonyj-2-500x500.jpg",{"$f":"DelUrl(A32,'имена файлов для удаления'!$A$1:$A$11)","v":"https://static-eu.insales.ru/images/products/1/6171/107149339/379.500x0.jpg https://static-eu.insales.ru/images/products/1/6173/107149341/380.500x0.jpg https://static-eu.insales.ru/images/products/1/3004/108874684/5608_5.jpg"}]
["https://static-eu.insales.ru/images/products/1/6171/107149339/379.500x0.jpg https://static-eu.insales.ru/images/products/1/6173/107149341/380.500x0.jpg https://static-eu.insales.ru/images/products/1/2998/108874678/5608_1.jpg https://static-eu.insales.ru/images/products/1/2999/108874679/5608_4.jpg https://static-eu.insales.ru/images/products/1/3000/108874680/5609_4.jpg https://static-eu.insales.ru/images/products/1/3001/108874681/5609_7.jpg https://static-eu.insales.ru/images/products/1/3002/108874682/c8c3fe20fd567b7862010d02bce2e4be.jpg https://static-eu.insales.ru/images/products/1/3004/108874684/5608_5.jpg https://static-eu.insales.ru/images/products/1/3005/108874685/5608_6.jpg https://static-eu.insales.ru/images/products/1/3006/108874686/5608_7.jpg https://static-eu.insales.ru/images/products/1/3007/108874687/5609_8.jpg https://static-eu.insales.ru/images/products/1/3008/108874688/5609_12-1.jpg https://static-eu.insales.ru/images/products/1/3009/108874689/chernyj-zeljonyj-2-500x500.jpg",{"$f":"DelUrl(A33,'имена файлов для удаления'!$A$1:$A$11)","v":"https://static-eu.insales.ru/images/products/1/6171/107149339/379.500x0.jpg https://static-eu.insales.ru/images/products/1/6173/107149341/380.500x0.jpg https://static-eu.insales.ru/images/products/1/3004/108874684/5608_5.jpg"}]
["https://static-eu.insales.ru/images/products/1/6178/107149346/img8150_16312.jpg https://static-eu.insales.ru/images/products/1/6180/107149348/20263.jpg https://static-eu.insales.ru/images/products/1/6185/107149353/img8150_10518.jpg https://static-eu.insales.ru/images/products/1/1133/108881005/5608_1.jpg https://static-eu.insales.ru/images/products/1/1134/108881006/5608_4.jpg https://static-eu.insales.ru/images/products/1/1136/108881008/5609_4.jpg https://static-eu.insales.ru/images/products/1/1137/108881009/5609_7.jpg https://static-eu.insales.ru/images/products/1/1138/108881010/c8c3fe20fd567b7862010d02bce2e4be.jpg https://static-eu.insales.ru/images/products/1/1139/108881011/5608_5.jpg https://static-eu.insales.ru/images/products/1/1141/108881013/5608_6.jpg https://static-eu.insales.ru/images/products/1/1144/108881016/5608_7.jpg https://static-eu.insales.ru/images/products/1/1145/108881017/5609_8.jpg https://static-eu.insales.ru/images/products/1/1146/108881018/5609_12-1.jpg https://static-eu.insales.ru/images/products/1/1147/108881019/chernyj-zeljonyj-2-500x500.jpg",{"$f":"DelUrl(A34,'имена файлов для удаления'!$A$1:$A$11)","v":"https://static-eu.insales.ru/images/products/1/6178/107149346/img8150_16312.jpg https://static-eu.insales.ru/images/products/1/6180/107149348/20263.jpg https://static-eu.insales.ru/images/products/1/6185/107149353/img8150_10518.jpg https://static-eu.insales.ru/images/products/1/1139/108881011/5608_5.jpg"}]
["https://static-eu.insales.ru/images/products/1/6189/107149357/img8162_22351_big.jpg",{"$f":"DelUrl(A35,'имена файлов для удаления'!$A$1:$A$11)","v":"https://static-eu.insales.ru/images/products/1/6189/107149357/img8162_22351_big.jpg"}]
["https://static-eu.insales.ru/images/products/1/6198/107149366/img8179_32220_big.jpg https://static-eu.insales.ru/images/products/1/6202/107149370/img8180_37299_big__1_.jpg https://static-eu.insales.ru/images/products/1/3021/108874701/5608_1.jpg https://static-eu.insales.ru/images/products/1/3022/108874702/5608_4.jpg https://static-eu.insales.ru/images/products/1/3023/108874703/5609_4.jpg https://static-eu.insales.ru/images/products/1/3024/108874704/5609_7.jpg https://static-eu.insales.ru/images/products/1/3025/108874705/c8c3fe20fd567b7862010d02bce2e4be.jpg https://static-eu.insales.ru/images/products/1/3026/108874706/5608_5.jpg https://static-eu.insales.ru/images/products/1/3027/108874707/5608_6.jpg https://static-eu.insales.ru/images/products/1/3028/108874708/5608_7.jpg https://static-eu.insales.ru/images/products/1/3030/108874710/5609_8.jpg https://static-eu.insales.ru/images/products/1/3031/108874711/5609_12-1.jpg https://static-eu.insales.ru/images/products/1/3032/108874712/chernyj-zeljonyj-2-500x500.jpg",{"$f":"DelUrl(A36,'имена файлов для удаления'!$A$1:$A$11)","v":"https://static-eu.insales.ru/images/products/1/6198/107149366/img8179_32220_big.jpg https://static-eu.insales.ru/images/products/1/6202/107149370/img8180_37299_big__1_.jpg https://static-eu.insales.ru/images/products/1/3026/108874706/5608_5.jpg"}]
["https://static-eu.insales.ru/images/products/1/6198/107149366/img8179_32220_big.jpg https://static-eu.insales.ru/images/products/1/6202/107149370/img8180_37299_big__1_.jpg https://static-eu.insales.ru/images/products/1/3021/108874701/5608_1.jpg https://static-eu.insales.ru/images/products/1/3022/108874702/5608_4.jpg https://static-eu.insales.ru/images/products/1/3023/108874703/5609_4.jpg https://static-eu.insales.ru/images/products/1/3024/108874704/5609_7.jpg https://static-eu.insales.ru/images/products/1/3025/108874705/c8c3fe20fd567b7862010d02bce2e4be.jpg https://static-eu.insales.ru/images/products/1/3026/108874706/5608_5.jpg https://static-eu.insales.ru/images/products/1/3027/108874707/5608_6.jpg https://static-eu.insales.ru/images/products/1/3028/108874708/5608_7.jpg https://static-eu.insales.ru/images/products/1/3030/108874710/5609_8.jpg https://static-eu.insales.ru/images/products/1/3031/108874711/5609_12-1.jpg https://static-eu.insales.ru/images/products/1/3032/108874712/chernyj-zeljonyj-2-500x500.jpg",{"$f":"DelUrl(A37,'имена файлов для удаления'!$A$1:$A$11)","v":"https://static-eu.insales.ru/images/products/1/6198/107149366/img8179_32220_big.jpg https://static-eu.insales.ru/images/products/1/6202/107149370/img8180_37299_big__1_.jpg https://static-eu.insales.ru/images/products/1/3026/108874706/5608_5.jpg"}]
["https://static-eu.insales.ru/images/products/1/6205/107149373/img8144_16232_big.jpg https://static-eu.insales.ru/images/products/1/6208/107149376/img8145_21164_big.jpg https://static-eu.insales.ru/images/products/1/6209/107149377/img8146_39983.jpg https://static-eu.insales.ru/images/products/1/6213/107149381/img8147_66997_big.jpg https://static-eu.insales.ru/images/products/1/3033/108874713/5608_1.jpg https://static-eu.insales.ru/images/products/1/3034/108874714/5608_4.jpg https://static-eu.insales.ru/images/products/1/3035/108874715/5609_4.jpg https://static-eu.insales.ru/images/products/1/3036/108874716/5609_7.jpg https://static-eu.insales.ru/images/products/1/3037/108874717/c8c3fe20fd567b7862010d02bce2e4be.jpg https://static-eu.insales.ru/images/products/1/3038/108874718/5608_5.jpg https://static-eu.insales.ru/images/products/1/3039/108874719/5608_6.jpg https://static-eu.insales.ru/images/products/1/3040/108874720/5608_7.jpg https://static-eu.insales.ru/images/products/1/3041/108874721/5609_8.jpg https://static-eu.insales.ru/images/products/1/3042/108874722/5609_12-1.jpg https://static-eu.insales.ru/images/products/1/3044/108874724/chernyj-zeljonyj-2-500x500.jpg",{"$f":"DelUrl(A38,'имена файлов для удаления'!$A$1:$A$11)","v":"https://static-eu.insales.ru/images/products/1/6205/107149373/img8144_16232_big.jpg https://static-eu.insales.ru/images/products/1/6208/107149376/img8145_21164_big.jpg https://static-eu.insales.ru/images/products/1/6209/107149377/img8146_39983.jpg https://static-eu.insales.ru/images/products/1/6213/107149381/img8147_66997_big.jpg https://static-eu.insales.ru/images/products/1/3038/108874718/5608_5.jpg"}]
["https://static-eu.insales.ru/images/products/1/6205/107149373/img8144_16232_big.jpg https://static-eu.insales.ru/images/products/1/6208/107149376/img8145_21164_big.jpg https://static-eu.insales.ru/images/products/1/6209/107149377/img8146_39983.jpg https://static-eu.insales.ru/images/products/1/6213/107149381/img8147_66997_big.jpg https://static-eu.insales.ru/images/products/1/3033/108874713/5608_1.jpg https://static-eu.insales.ru/images/products/1/3034/108874714/5608_4.jpg https://static-eu.insales.ru/images/products/1/3035/108874715/5609_4.jpg https://static-eu.insales.ru/images/products/1/3036/108874716/5609_7.jpg https://static-eu.insales.ru/images/products/1/3037/108874717/c8c3fe20fd567b7862010d02bce2e4be.jpg https://static-eu.insales.ru/images/products/1/3038/108874718/5608_5.jpg https://static-eu.insales.ru/images/products/1/3039/108874719/5608_6.jpg https://static-eu.insales.ru/images/products/1/3040/108874720/5608_7.jpg https://static-eu.insales.ru/images/products/1/3041/108874721/5609_8.jpg https://static-eu.insales.ru/images/products/1/3042/108874722/5609_12-1.jpg https://static-eu.insales.ru/images/products/1/3044/108874724/chernyj-zeljonyj-2-500x500.jpg",{"$f":"DelUrl(A39,'имена файлов для удаления'!$A$1:$A$11)","v":"https://static-eu.insales.ru/images/products/1/6205/107149373/img8144_16232_big.jpg https://static-eu.insales.ru/images/products/1/6208/107149376/img8145_21164_big.jpg https://static-eu.insales.ru/images/products/1/6209/107149377/img8146_39983.jpg https://static-eu.insales.ru/images/products/1/6213/107149381/img8147_66997_big.jpg https://static-eu.insales.ru/images/products/1/3038/108874718/5608_5.jpg"}]
["https://static-eu.insales.ru/images/products/1/6205/107149373/img8144_16232_big.jpg https://static-eu.insales.ru/images/products/1/6208/107149376/img8145_21164_big.jpg https://static-eu.insales.ru/images/products/1/6209/107149377/img8146_39983.jpg https://static-eu.insales.ru/images/products/1/6213/107149381/img8147_66997_big.jpg https://static-eu.insales.ru/images/products/1/3033/108874713/5608_1.jpg https://static-eu.insales.ru/images/products/1/3034/108874714/5608_4.jpg https://static-eu.insales.ru/images/products/1/3035/108874715/5609_4.jpg https://static-eu.insales.ru/images/products/1/3036/108874716/5609_7.jpg https://static-eu.insales.ru/images/products/1/3037/108874717/c8c3fe20fd567b7862010d02bce2e4be.jpg https://static-eu.insales.ru/images/products/1/3038/108874718/5608_5.jpg https://static-eu.insales.ru/images/products/1/3039/108874719/5608_6.jpg https://static-eu.insales.ru/images/products/1/3040/108874720/5608_7.jpg https://static-eu.insales.ru/images/products/1/3041/108874721/5609_8.jpg https://static-eu.insales.ru/images/products/1/3042/108874722/5609_12-1.jpg https://static-eu.insales.ru/images/products/1/3044/108874724/chernyj-zeljonyj-2-500x500.jpg",{"$f":"DelUrl(A40,'имена файлов для удаления'!$A$1:$A$11)","v":"https://static-eu.insales.ru/images/products/1/6205/107149373/img8144_16232_big.jpg https://static-eu.insales.ru/images/products/1/6208/107149376/img8145_21164_big.jpg https://static-eu.insales.ru/images/products/1/6209/107149377/img8146_39983.jpg https://static-eu.insales.ru/images/products/1/6213/107149381/img8147_66997_big.jpg https://static-eu.insales.ru/images/products/1/3038/108874718/5608_5.jpg"}]
["https://static-eu.insales.ru/images/products/1/6205/107149373/img8144_16232_big.jpg https://static-eu.insales.ru/images/products/1/6208/107149376/img8145_21164_big.jpg https://static-eu.insales.ru/images/products/1/6209/107149377/img8146_39983.jpg https://static-eu.insales.ru/images/products/1/6213/107149381/img8147_66997_big.jpg https://static-eu.insales.ru/images/products/1/3033/108874713/5608_1.jpg https://static-eu.insales.ru/images/products/1/3034/108874714/5608_4.jpg https://static-eu.insales.ru/images/products/1/3035/108874715/5609_4.jpg https://static-eu.insales.ru/images/products/1/3036/108874716/5609_7.jpg https://static-eu.insales.ru/images/products/1/3037/108874717/c8c3fe20fd567b7862010d02bce2e4be.jpg https://static-eu.insales.ru/images/products/1/3038/108874718/5608_5.jpg https://static-eu.insales.ru/images/products/1/3039/108874719/5608_6.jpg https://static-eu.insales.ru/images/products/1/3040/108874720/5608_7.jpg https://static-eu.insales.ru/images/products/1/3041/108874721/5609_8.jpg https://static-eu.insales.ru/images/products/1/3042/108874722/5609_12-1.jpg https://static-eu.insales.ru/images/products/1/3044/108874724/chernyj-zeljonyj-2-500x500.jpg",{"$f":"DelUrl(A41,'имена файлов для удаления'!$A$1:$A$11)","v":"https://static-eu.insales.ru/images/products/1/6205/107149373/img8144_16232_big.jpg https://static-eu.insales.ru/images/products/1/6208/107149376/img8145_21164_big.jpg https://static-eu.insales.ru/images/products/1/6209/107149377/img8146_39983.jpg https://static-eu.insales.ru/images/products/1/6213/107149381/img8147_66997_big.jpg https://static-eu.insales.ru/images/products/1/3038/108874718/5608_5.jpg"}]
["https://static-eu.insales.ru/images/products/1/6216/107149384/12262.jpg https://static-eu.insales.ru/images/products/1/1148/108881020/5608_1.jpg https://static-eu.insales.ru/images/products/1/1149/108881021/5608_4.jpg https://static-eu.insales.ru/images/products/1/1150/108881022/5609_4.jpg https://static-eu.insales.ru/images/products/1/1151/108881023/5609_7.jpg https://static-eu.insales.ru/images/products/1/1152/108881024/c8c3fe20fd567b7862010d02bce2e4be.jpg https://static-eu.insales.ru/images/products/1/1153/108881025/5608_5.jpg https://static-eu.insales.ru/images/products/1/1154/108881026/5608_6.jpg https://static-eu.insales.ru/images/products/1/1156/108881028/5608_7.jpg https://static-eu.insales.ru/images/products/1/1157/108881029/5609_8.jpg https://static-eu.insales.ru/images/products/1/1158/108881030/5609_12-1.jpg https://static-eu.insales.ru/images/products/1/1159/108881031/chernyj-zeljonyj-2-500x500.jpg",{"$f":"DelUrl(A42,'имена файлов для удаления'!$A$1:$A$11)","v":"https://static-eu.insales.ru/images/products/1/6216/107149384/12262.jpg https://static-eu.insales.ru/images/products/1/1153/108881025/5608_5.jpg"}]
["https://static-eu.insales.ru/images/products/1/6220/107149388/11674.jpg https://static-eu.insales.ru/images/products/1/6225/107149393/11676.jpg https://static-eu.insales.ru/images/products/1/3045/108874725/5608_1.jpg https://static-eu.insales.ru/images/products/1/3046/108874726/5608_4.jpg https://static-eu.insales.ru/images/products/1/3047/108874727/5609_4.jpg https://static-eu.insales.ru/images/products/1/3048/108874728/5609_7.jpg https://static-eu.insales.ru/images/products/1/3049/108874729/c8c3fe20fd567b7862010d02bce2e4be.jpg https://static-eu.insales.ru/images/products/1/3050/108874730/5608_5.jpg https://static-eu.insales.ru/images/products/1/3051/108874731/5608_6.jpg https://static-eu.insales.ru/images/products/1/3052/108874732/5608_7.jpg https://static-eu.insales.ru/images/products/1/3053/108874733/5609_8.jpg https://static-eu.insales.ru/images/products/1/3054/108874734/5609_12-1.jpg https://static-eu.insales.ru/images/products/1/3055/108874735/chernyj-zeljonyj-2-500x500.jpg",{"$f":"DelUrl(A43,'имена файлов для удаления'!$A$1:$A$11)","v":"https://static-eu.insales.ru/images/products/1/6220/107149388/11674.jpg https://static-eu.insales.ru/images/products/1/6225/107149393/11676.jpg https://static-eu.insales.ru/images/products/1/3050/108874730/5608_5.jpg"}]

{"sheet":"имена файлов для удаления","index":1,"n_rows":11,"n_cols":1,"rows_kept":11,"cut":false,"hidden":false,"merged":[]}
["5608_1.jpg "]
["5608_4.jpg"]
["5609_4.jpg"]
["5609_7.jpg"]
["c8c3fe20fd567b7862010d02bce2e4be.jpg"]
["108881076/5608_5.jpg"]
["5608_6.jpg"]
["5608_7.jpg "]
["5609_8.jpg "]
["5609_12-1.jpg "]
["chernyj-zeljonyj-2-500x500.jpg "]